Cogmind - Beta 17 @@@ ROGUE MODE // 2026.08.09 @ 07:33:25 Player: C-Log Result: Destroyed by YI-UF0 with YI-UF0's Doublenader Performance ------------- Evolutions (0) 0 Regions Visited (2) 400 Robots Destroyed (19) 95 Value Destroyed (308) 308 Prototype IDs (0) 0 Alien Tech Used (0) 0 Bonus (0) 0 TOTAL SCORE: 803 Bonus ------- None Cogmind --------- Core Integrity 0/250 Matter 8/300 Energy 74/100 System Corruption 4% Temperature Cool (0) Movement Core (350) Ox6 Location -10/Mines Parts ------- > --- POWER (1) -------- (None) > --- PROPULSION (2) --- (None) > --- UTILITY (2) ------ Large Storage Unit Seismic Detector > --- WEAPON (2) ------- (None) > --- INVENTORY (15) --- Light Ion Engine Light Treads Sensor Array Signal Interpreter Seismic Detector ECM Suite Mining Laser Peak State ------------ > --- POWER ------------ Ion Engine > --- PROPULSION ------- Light Treads Light Treads > --- UTILITY ---------- Small Storage Unit Seismic Detector > --- WEAPON ----------- Assault Rifle Grenade Launcher > --- INVENTORY -------- Light Ion Engine Aluminum Leg Aluminum Leg Improved Terrain Scanner Seismic Detector ECM Suite Beam Cannon Light Assault Rifle [Rating: 8] Favorites ----------- Power Ion Engine Engine Ion Engine Propulsion Light Treads Treads Light Treads Utility Seismic Detector Device Seismic Detector Storage Small Storage Unit Weapon Assault Rifle Energy Cannon Beam Cannon Ballistic Gun Assault Rifle Launcher Grenade Launcher Special Weapon Mining Laser Build | -11 -10 -10 ------- Run | Yrd Mat Min Slots Evolved . | . . . Power . | . . . Propulsion . | . . . Utility . | . . . Weapon . | . . . Parts Attached 15 | 7 7 1 Power 3 | 1 2 . Engine 3 | 1 2 . Core . | . . . Reactor . | . . . Propulsion 3 | 2 1 . Treads 3 | 2 1 . Leg . | . . . Wheel . | . . . Hover . | . . . Flight . | . . . Utility 3 | 2 1 . Device 1 | 1 . . Storage 2 | 1 1 . Processor . | . . . Hackware . | . . . Protection . | . . . Artifact . | . . . Weapon 6 | 2 3 1 Energy Gun . | . . . Energy Cannon 1 | . 1 . Ballistic Gun 2 | 2 . . Ballistic Cannon . | . . . Launcher 2 | . 1 1 Special Weapon 1 | . 1 . Impact Weapon . | . . . Slashing Weapon . | . . . Piercing Weapon . | . . . Special Melee Weapon . | . . . Unidentified Prototypes . | . . . Parts Lost 10 | . 3 7 Power 3 | . 2 1 Propulsion 2 | . . 2 Utility . | . . . Weapon 5 | . 1 4 Highest Loss Streak 7 | . 2 7 To Critical Strikes . | . . . Average Backups 7 | 2 7 8 Power . | . 1 1 Propulsion 1 | 1 1 1 Utility 2 | . 2 4 Weapon 1 | . 1 2 Tool/Special . | . . . Unused Backups 8 | . 3 5 Power 1 | . . 1 Propulsion 2 | . 2 . Utility 5 | . 1 4 Weapon . | . . . Tool/Special . | . . . Average Slot Usage (%) 91 | . 90 94 Engine 8 | . 6 12 Treads 27 | . 28 24 Device 14 | . 14 14 Storage 14 | . 14 14 Energy Cannon 5 | . 3 13 Ballistic Gun 11 | . 12 7 Launcher 9 | . 10 6 Peak Build Rating 8 | 7 8 7 Average Rating 6 | 5 6 6 On Entrance 4 | . 7 7 Avg Prop Armor Cover (%) . | . . . Naked Turns . | . . . Heaviest Build 32 | 14 32 32 Greatest Support 40 | 40 40 40 Greatest Overweight (x) . | . . . Average Overweight (x) . | . . . Largest Inventory Capacity 15 | 8 15 15 Average Capacity 9 | 7 8 15 Most Carried 9 | 6 8 9 Average Carried 7 | 2 7 8 Final Capacity 15 | 8 15 15 Final Carried 8 | 6 8 7 Class Distribution -------------------- 100% | Mutant Dominant Class ---------------- Mutant | -10/Materials Mutant | -10/Mines Resources | -11 -10 -10 ----------- Run | Yrd Mat Min Matter Collected 388 | 236 117 35 Remotely . | . . . Salvage Created 383 | 148 200 35 Parts 29 | 9 20 . Haulers Intercepted 1 | . 1 . Recyclers Shooed . | . . . Parts Field Recycled . | . . . Retrieved Matter . | . . . Parts Self-Destructed . | . . . Prevented . | . . . Parts Restored . | . . . Kills | -11 -10 -10 ------- Run | Yrd Mat Min Combat Hostiles Destroyed 10 | . 8 2 Guns 1 | . 1 . AOE 9 | . 7 2 Classes Destroyed 8 | 2 6 . Worker 1 | . 1 . Builder 2 | . 2 . Tunneler 2 | 2 . . Hauler 1 | . 1 . Recycler 1 | 1 . . Watcher 2 | . 2 . Swarmer 5 | . 5 . Grunt 5 | . 3 2 Best Kill Streak 5 | 3 5 2 Combat Bots Only 4 | . 4 2 Max Kills in Single Turn 2 | 1 2 2 Gunslinging . | . . . Exploded 2 | . 2 2 Melee . | . . . Uniques/NPCs Destroyed . | . . . Combat | -11 -10 -10 -------- Run | Yrd Mat Min Hostile Shots Fired 64 | . 33 31 Missed 15 | . 10 5 Hits 49 | . 23 26 Projectile 49 | . 23 26 AOE 18 | . . 18 Critical Strikes 1 | . . 1 Damage Taken 1196 | . 476 720 Core 259 | . 41 218 Absorbed by Shields . | . . . Core Remaining (%) 100 | 100 . . Volleys Fired 50 | 8 26 16 Largest 2 | 2 2 2 Hottest 100 | 40 100 90 Shots Fired 84 | 16 40 28 Gun 45 | 16 21 8 Cannon 16 | . 3 13 Launcher 20 | . 13 7 Special 3 | . 3 . Kinetic 45 | 16 21 8 Thermal 19 | . 6 13 Explosive 20 | . 13 7 Electromagnetic . | . . . Robot Hit Streak 7 | 2 4 7 Robot Miss Streak 3 | 2 2 3 Penetration Max . | . . . Secondary Targets . | . . . Shots Hit Robots 40 | 9 15 16 Core Hits 35 | 5 23 7 Critical Kills . | . . . Critical Parts Destroyed . | . . . Critical Strikes . | . . . Melee Attacks . | . . . Impact . | . . . Slashing . | . . . Piercing . | . . . Sneak Attacks . | . . . Combat Hostiles . | . . . Follow-up Attacks . | . . . Damage Inflicted 1405 | 86 852 467 Guns 250 | 86 106 58 Cannons 106 | . . 106 Explosions 1049 | . 746 303 Melee . | . . . Ramming . | . . . Kinetic 250 | 86 106 58 Thermal 106 | . . 106 Explosive 1049 | . 746 303 Electromagnetic . | . . . Impact . | . . . Slashing . | . . . Piercing . | . . . Highest Corruption 4 | . 4 4 Average Corruption 4 | . 4 4 Corruption Purged . | . . . Corruption Blocked . | . . . Effects 11 | . 8 3 Matter Fused 3 | . 3 . Heat Flow Errors 1 | . 1 . Energy Discharges 2 | . 1 1 Data Loss (minor) 1 | . 1 . Data Loss (major) 1 | . 1 . Misfires 1 | . 1 . Weapon Failures 2 | . . 2 Overload Shots . | . . . Overflow Damage 27 | . 27 . Projectiles . | . . . Explosions 27 | . 27 . Melee . | . . . Knockbacks . | . . . Impact . | . . . Kinetic . | . . . Secondary . | . . . Self-Inflicted Damage 156 | . 84 72 Shots 9 | . 4 5 Rammed . | . . . Targets Rammed . | . . . Kicked . | . . . Crushed . | . . . Highest Temperature 213 | . 137 213 Average Temperature 50 | . 30 62 Received Heat Transfer 99 | . 18 81 Siege Activations . | . . . Martial Activations . | . . . Shielding Activations . | . . . Robots Disrupted . | . . . Combat Hostiles . | . . . Robots Corrupted . | . . . Combat Hostiles . | . . . Parts Fried . | . . . Impact Corruptions . | . . . Robots Melted . | . . . Combat Hostiles . | . . . Parts Melted . | . . . Heat Transferred 222 | . . 222 Parts Sabotaged . | . . . Parts Stolen . | . . . Parts Stripped . | . . . Power Chain Reactions . | . . . Alert | -11 -10 -10 ------- Run | Yrd Mat Min Maximum Alert Level . | . . . Low Security (%) 100 | 100 100 100 Level 1 . | . . . Level 2 . | . . . Level 3 . | . . . Level 4 . | . . . Level 5 . | . . . High Security . | . . . Max Security . | . . . Peak Influence 194 | 10 194 121 Initial 61 | . . 61 Average 65 | 1 75 76 Influence Increases 427 | 15 333 79 Destroy 0b10 Robot/C 200 | . 160 40 Destroy 0b10 Robot/NC 45 | 15 30 . Destroy Leader 46 | . 36 10 Disable Machine 15 | . 15 . Destroy Structure 121 | . 92 29 Influence Decreases 427 | 15 175 237 Entered New Map 97 | . . 97 Time Decay 250 | 15 165 70 Lost Part 80 | . 10 70 Squads Dispatched 3 | . 3 . Investigation 1 | . 1 . Extermination . | . . . Reinforcement 2 | . 2 . Assault . | . . . Garrison . | . . . Intercept . | . . . Searches Triggered . | . . . Construction Impeded . | . . . Haulers Reinforced . | . . . Active Scanning Responses . | . . . Cargo Convoy Interrupts . | . . . Stealth | -11 -10 -10 --------- Run | Yrd Mat Min Distress Signals 2 | . 2 . Communications Jammed . | . . . Distress Signals . | . . . Times Spotted 17 | . 13 4 Peak Tracking Total 3 | . 3 3 Tactical Retreats . | . . . Traps | -11 -10 -10 ------- Run | Yrd Mat Min Traps Triggered 1 | . 1 . Indirectly . | . . . Trap Hack Attempts . | . . . Triggered . | . . . Disarmed . | . . . Reprogrammed . | . . . Reused . | . . . Traps Extracted . | . . . Installed . | . . . Triggered . | . . . Machines | -11 -10 -10 ---------- Run | Yrd Mat Min Machines Disabled 1 | . 1 . Max in Single Turn 1 | . 1 . Machines Repaired . | . . . Machines Dismantled . | . . . Machines Sabotaged . | . . . Overloaded Fab Kills . | . . . Hacking | -11 -10 -10 --------- Run | Yrd Mat Min Machines Accessed 1 | . 1 . Terminals 1 | . 1 . Fabricators . | . . . Repair Stations . | . . . Recycling Units . | . . . Scanalyzers . | . . . Garrison Access . | . . . Total Hacks 1 | . 1 . Successful . | . . . Failed 1 | . 1 . Catastrophic 1 | . 1 . Database Lockouts . | . . . Manual 1 | . 1 . Terminals 1 | . 1 . Fabricators . | . . . Repair Stations . | . . . Recycling Units . | . . . Scanalyzers . | . . . Garrison Access . | . . . Terminal Hacks . | . . . Fabricator Hacks . | . . . Repair Station Hacks . | . . . Recycling Unit Hacks . | . . . Scanalyzer . | . . . Garrison Access Hacks . | . . . Unauthorized Hacks . | . . . Terminals . | . . . Fabricators . | . . . Repair Stations . | . . . Recycling Units . | . . . Scanalyzers . | . . . Garrison Access . | . . . Data Cores Recovered . | . . . Used . | . . . Hacking Detections 1 | . 1 . Full Trace Events . | . . . Feedback Events . | . . . Feedback Blocked . | . . . Robot Schematics Acquired . | . . . Robots Built . | . . . Authchips . | . . . Time . | . . . Total Robot Build Rating . | . . . Part Schematics Acquired . | . . . Parts Built . | . . . Authchips . | . . . Time . | . . . Total Part Build Rating . | . . . Part Studies Acquired . | . . . Parts Repaired . | . . . Time . | . . . Parts Recycled . | . . . Recycled Matter . | . . . Retrieved Matter . | . . . Retrieved Components . | . . . Parts Scanalyzed . | . . . Part Schematics Acquired . | . . . Parts Damaged . | . . . Bothacking | -11 -10 -10 ------------ Run | Yrd Mat Min Used RIF Installer . | . . . Robots Hacked . | . . . Non-combat . | . . . Combat . | . . . Robot Hacks Applied . | . . . Relay Couplers Released . | . . . Fabnet Peak Effective % . | . . . Robots Rewired . | . . . Allies Hacked . | . . . Hacks Repelled . | . . . Allies | -11 -10 -10 -------- Run | Yrd Mat Min Total Allies . | . . . Largest Group . | . . . Highest-Rated Group . | . . . Highest-Rated Ally . | . . . Total Orders . | . . . Ally Attacks . | . . . Total Damage . | . . . Kills . | . . . Allies Corrupted . | . . . Allies Melted . | . . . Intel | -11 -10 -10 ------- Run | Yrd Mat Min Active Infowar (turns) 619 | 27 435 157 Seismic 619 | 27 435 157 Robot Analysis Total . | . . . Derelict Logs Recovered . | . . . Drone Launches . | . . . Drone Recoveries . | . . . Exploration | -11 -10 -10 ------------- Run | Yrd Mat Min Turns Passed 690 | 98 435 157 Spaces Moved 321 | 42 212 67 Core 6 | 6 . . Treads 315 | 36 212 67 Legs . | . . . Wheels . | . . . Hover . | . . . Flight . | . . . Fastest Speed 50 | 50 160 160 Average Speed 157 | 144 160 160 Slowest Speed 160 | 160 160 160 Overloaded Moves . | . . . Propulsion Burnouts . | . . . Robots Hopped . | . . . Potential Cave-ins . | . . . Cave-ins Triggered 1 | . 1 . Exploration Rate (%) 22 | 3 48 16 Regions Visited 2 Branch Regions 1 Pre-discovered Areas . | . . . Known Exits Taken . | . . . Unknown Exits Taken 2 | 1 1 . Scrap Searched . | . . . Spaces Dug 3 | . 3 . Terrain Destroyed 153 | . 100 53 Melee . | . . . Projectile 3 | . 3 . AOE 150 | . 97 53 Terrain Rammed . | . . . Walls Destroyed . | . . . Machines Disabled . | . . . Actions | -11 -10 -10 --------- Run | Yrd Mat Min Total 412 | 62 263 87 Wait 5 | . 5 . Move 319 | 41 211 67 Hop . | . . . Pick Up 13 | 6 7 . Fast Attach 9 | 7 2 . Attach 3 | . 1 2 Detach . | . . . Swap 7 | . 5 2 Drop 6 | . 6 . Fire 50 | 8 26 16 Melee . | . . . Ram . | . . . Kick . | . . . Crush . | . . . Escape Stasis . | . . . Rewire . | . . . Trap . | . . . Miscellaneous . | . . . Route ------- -11/Scrapyard -10/Materials -10/Mines History --------- Turn | Location | Event 12 | -11/Scrapyard | Discovered new exit (range 15) 99 | -11/Scrapyard | Entered Materials 144 | -10/Materials | Crushed by falling debris 311 | -10/Materials | Build established: Mutant 476 | -10/Materials | Discovered new exit (range 9) 534 | -10/Materials | Entered Mines 542 | -10/Mines | YI-UF0 nonchalantly dropped a Grenade Launcher on the ground 684 | -10/Mines | Core integrity fell below 50% 690 | -10/Mines | Core integrity fell below 20% 691 | -10/Mines | Destroyed by YI-UF0 with YI-UF0's Doublenader Last Messages --------------- G-47 Trooper destroyed. G-34 Mercenary destroyed. Acquired 19 matter. Acquired 16 matter. The unstable cave ceiling collapses. YI-UF0 mumbles something. YI-UF0: "KABOOM!" YI-UF0: "Whaaaaaaaa!" G-47 Trooper destroyed. YI-UF0: "BWOOM!" System corrupted: Beam Cannon failed to cycle. Lgt. Treads destroyed. Destroyed Shock Absorption System. Ion Engine destroyed. Beam Cannon destroyed. Assault Rifle destroyed. The unstable cave ceiling collapses. Grenade Launcher destroyed. The unstable cave ceiling collapses. Grenade Launcher destroyed. Map ----- +----------------------------------------------------+ | ???# ## # #?## ##????????????????? | | ???## ## # ##???###?????????????????? | | ????## #### #???????????????????????? | | ?????# ## #???????????????????????? | | ?????## ### ####???????????????????????? | | ??????## #??????????????????????????? | | ???????### #####??????????????????????????? | | ?????????## #??????????????????????????????? | | ??????????# #??????????????????????????????? | | ??????????# #??????????????????????????????? | | ??????????# #??????????????????????????????? | | ??????????# #??????????????????????????????? | | ??????????# #??????????????????????????????? | | ??????????# #??????????????????????????????? | | ??????????# #??????????????????????????????? | | ??????????# ###????????????????????????????? | | ?????????## ##???????????????????????????? | | ?????????# ##??????????????????????????? | | ?????????# ##########?????????????????? | | ?????????# # ####### ??????????? | | ?????????# ??????????? | | ?????????## ?????????? | | ??????????#### g ?????????? | | ?????????????### ????????? | | ???????????????# r$ ????????? | | ???????????????# @ % ????????? | | ??????????????# ## * #??????????? | | ??????????????# #??????????????????? | | ??????????????## # # ?????????????????? | | ??????????????## #?##????????????????? | | ???????????????# # ??????????????????? | | ???????????????###### ?????????????????? | | ?????????????????????# ????????????????? | | ??????????????????????## ???????????????? | | ????????????????????????# #??????????????? | | ?????????????????????????# ##??????????????? | | ??????????????????????????###???????????????? | | ????????????????????????????????????????????? | | ????????????????????????????????????????????? | | ????????????????????????????????????????????? | | ????????????????????????????????????????????? | | ????????????????????????????????????????????? | | ????????????????????????????????????????????? | | ????????????????????????????????????????????? | | ????????????????????????????????????????????? | | ????????????????????????????????????????????? | | ????????????????????????????????????????????? | | ????????????????????????????????????????????? | | ????????????????????????????????????????????? | | ????????????????????????????????????????????? | +----------------------------------------------------+ Best States ------------- Heat Dissipation 25 Energy Generation 10 Energy Capacity 250 Matter Stores 234 Matter Capacity 300 Sight Range 16 Terrain Scan Density 10 Evasion (%) 40 Recoil Reduction 2 Item Schematics ----------------- None Robot Schematics ------------------ None Fabricated ------------ Nothing Repaired ---------- Nothing Studied --------- None Alien Tech Used ----------------- None Achievements -------------- None Challenges ------------ None Game ------ Seed PulsarTrackerPlatform Manual? 0 Play Time 00:10:37 Cumulative 16.1 hours Start 2026.08.08 @ 21:06:48 End 2026.08.09 @ 07:33:25 Sessions 2 Manual Loads 0 Difficulty Rogue Special Mode None Game No. 10 Rogue 6 Adventurer 4 Explorer 0 Win Type - Total 0 Types 0/0/0/0/0/0/0/0/0/0 Lore% 22 Gallery% 16 Achievement% 18 Wizard Run 0 Options --------- Layout 1 ASCII 0 Keyboard 0 Movement Mouse Keybinds 0 Fullscreen 1 Font 32/SmallcapsGlow Map View 50x35 Zoom Use 0% Tactical HUD 0 Map Filters NONE Filters NONE Steam 1 RUN: e0c3bc6b-317e-4ec2-b8d0-db9e43ddf5ed